fUSD/lending_fUSD_20241031
["ID","MTS","AMOUNT","RATE_DAILY","PERIOD"]
[341108426,1730386243463,-200.0,0.0005,2]
[341108428,1730386243472,-7056.26209799,0.0005,120]
[341108429,1730386243483,-14739.6,0.00050033,7]
[341108430,1730386243493,-1000.0,0.00050052,2]
[341108431,1730386243502,-987.0,0.00050087,3]
[341108432,1730386243511,-626.24,0.00050088,120]
[341108433,1730386243521,-467.2,0.00050284,120]
[341108434,1730386243530,-1000.0,0.000505,7]
[341108435,1730386243540,-1000.0,0.00050684,120]
[341108436,1730386243549,-200.0,0.00050719,120]
[341108437,1730386243558,-1386.77,0.00050825,7]
[341108438,1730386243567,-477.58,0.00050881,2]
[341108439,1730386243577,-210.19865848,0.00050963,28]
[341108440,1730386243586,-602.18,0.00051125,120]
[341108441,1730386243596,-150.0,0.00051222,2]
[341108442,1730386243608,-500.0,0.00051341,120]
[341108443,1730386243617,-254.63205,0.000514,120]
[341108444,1730386243627,-850.73,0.00051459,2]
[341108445,1730386243636,-1000.0,0.000515,120]
[341108446,1730386243645,-494.44569291,0.000515,2]
[341108447,1730386243654,-4390.12,0.000515,7]
[341108448,1730386243663,-170.98,0.00051561,2]
[341108449,1730386243672,-369.33848089,0.00051781,7]
[341108450,1730386243681,-1607.77308214,0.000518,30]
[341108451,1730386243691,-230.74800426,0.00052,120]
[341108452,1730386243700,-300.0,0.00052,120]
[341108453,1730386243710,-153.99306725,0.00052054,120]
[341108454,1730386243719,-2087.12901652,0.00052054,120]
[341108455,1730386243728,-8589.59,0.00052118,7]
[341108456,1730386243738,-166.92,0.00052211,2]
[341108457,1730386243748,-451.0,0.00052418,120]
[341108458,1730386243759,-1249.0,0.00052418,120]
[341108459,1730386243769,-1976.0,0.00052418,120]
[341108460,1730386243778,-260.684,0.00052418,120]
[341108461,1730386243788,-557.0,0.00052418,120]
[341108462,1730386243799,-3152.527,0.00052418,120]
[341108463,1730386243809,-850.118,0.00052418,120]
[341108464,1730386243819,-2902.0,0.00052418,120]
[341108465,1730386243828,-1254.0,0.00052418,120]
[341108466,1730386243840,-812.0,0.00052418,2]
[341108467,1730386243852,-807.0,0.00052418,120]
[341108468,1730386243861,-150.0,0.00052418,120]
[341108469,1730386243871,-241.02,0.00052418,120]
[341108470,1730386243880,-1076.222,0.00052418,120]
[341108471,1730386243892,-13579.0,0.00052418,120]
[341108472,1730386243902,-291.808,0.00052418,2]
[341108473,1730386243912,-158.192,0.00052418,120]
[341108474,1730386243921,-154.0,0.00052418,2]
[341108475,1730386243930,-1087.0,0.00052418,120]
[341108476,1730386243940,-500.0,0.00052623,120]
[341108477,1730386243949,-577.808541,0.00052623,120]
[341108478,1730386243959,-179352.8,0.00052943,7]
[341108479,1730386243968,-327.85854204,0.00052963,2]
[341108480,1730386243978,-571.76342082,0.00053,2]
[341108481,1730386243987,-151.0,0.00053014,120]
[341108482,1730386243997,-477.58,0.00053093,2]
[341108483,1730386244006,-210.19865848,0.00053108,28]
[341108484,1730386244016,-168.88,0.00053125,120]
[341108485,1730386244026,-168.88,0.00053125,120]
[341108486,1730386244035,-168.88,0.00053125,120]
[341108487,1730386244045,-168.88,0.00053125,120]
[341108488,1730386244054,-168.88,0.00053125,120]
[341108489,1730386244064,-879.77612175,0.00053289,120]
[341108490,1730386244074,-443.20653007,0.0005331,2]
[341108491,1730386244084,-300.0,0.00053329,10]
[341108492,1730386244093,-300.0,0.00053329,10]
[341108493,1730386244106,-143603.8598078,0.0005333,2]
[341108494,1730386244115,-375.33986498,0.00053373,10]
[341108495,1730386244125,-216.1539,0.00053396,2]
[341108496,1730386244135,-5000.0,0.000534,3]
[341108497,1730386244144,-5000.0,0.000534,10]
[341108498,1730386244154,-156.00831996,0.00053452,10]
[341108499,1730386244163,-1139.02217927,0.00053495,90]
[341108500,1730386244173,-763.56284449,0.00053495,90]
[341108501,1730386244182,-1000.0,0.00053495,120]
[341108502,1730386244191,-500.0,0.00053495,120]
[341108503,1730386244200,-500.0,0.00053495,120]
[341108504,1730386244210,-500.0,0.00053495,120]
[341108505,1730386244219,-500.0,0.00053495,120]
[341108506,1730386244228,-500.0,0.00053495,120]
[341108507,1730386244237,-500.0,0.00053495,120]
[341108508,1730386244247,-500.0,0.00053495,120]
[341108509,1730386244258,-1000.0,0.00053495,120]
[341108510,1730386244268,-500.0,0.00053495,2]
[341108511,1730386244369,-195.19816907,0.00053496,30]
[341108512,1730386244379,-629.0,0.000535,7]
[341108513,1730386244388,-266.1,0.000535,30]
[341108514,1730386244397,-769.79712684,0.000535,120]
[341108515,1730386244406,-204.03,0.000535,120]
[341108516,1730386244415,-150.5,0.0005351,120]
[341108517,1730386244426,-500.0,0.0005352,120]
[341108518,1730386244435,-500.0,0.00053535,120]
[341108519,1730386244444,-156.67,0.000536,54]
[341108520,1730386244453,-156.67,0.000536,54]
[341108521,1730386244463,-156.67,0.000536,54]
[341108522,1730386244473,-156.67,0.000536,54]
[341108523,1730386244483,-500.0,0.00053607,120]
[341108524,1730386244492,-1068.82998554,0.00053637,90]
[341108525,1730386244502,-500.0,0.00053637,120]
[341108526,1730386244511,-500.0,0.00053637,120]
[341108527,1730386244520,-208.73962553,0.00053637,120]
[341108528,1730386244530,-151.0,0.00053638,120]
[341108529,1730386244540,-151.0,0.00053638,120]
[341108530,1730386244550,-1068.82998554,0.00053644,90]
[341108531,1730386244560,-564.6054305,0.00053689,120]
[341108532,1730386244570,-161.828062,0.0005369,120]
[341108533,1730386244580,-163.791603,0.0005369,120]
[341108534,1730386244590,-731.25,0.000537,60]
[341108535,1730386244600,-850.73,0.00053723,2]
[341108536,1730386244611,-1068.82998554,0.00053729,90]
[341108537,1730386244621,-408.95,0.00053751,120]
[341108538,1730386244631,-1068.82998554,0.00053761,90]
[341108539,1730386244640,-1000.0,0.00053769,120]
[341108540,1730386244650,-1068.82998554,0.00053772,90]
[341108541,1730386244661,-200.0,0.00053782,120]
[341108542,1730386244671,-573.29,0.000538,2]
[341108543,1730386244682,-500.0,0.00053882,5]
[341108544,1730386244691,-500.0,0.00053891,5]
[341108545,1730386244701,-500.0,0.000539,5]
[341108546,1730386244711,-150.000001,0.000539,96]
[341108547,1730386244719,-1012.9,0.000539,120]
[341108548,1730386244728,-170.98,0.00053921,2]
[341108549,1730386244737,-500.0,0.00053952,81]
[341108550,1730386244746,-788.6183631,0.0005396,120]
[341108551,1730386244757,-180.14344475,0.00054,120]
[341108552,1730386244767,-500.0,0.00054,120]
[341108553,1730386244775,-300.0,0.00054,120]
[341108554,1730386244784,-1000.0,0.00054043,120]
[341108555,1730386244793,-1000.0,0.00054043,120]
[341108556,1730386244803,-354.85,0.0005405,120]
[341108557,1730386244812,-500.0,0.00054053,81]
[341108558,1730386244821,-500.0,0.00054093,120]
[341108559,1730386244830,-152.0,0.00054134,5]
[341108560,1730386244841,-152.0,0.00054134,5]
[341108561,1730386244856,-943.87724129,0.0005415,30]
[341108562,1730386244865,-1000.0,0.00054317,120]
[341108563,1730386244874,-500.0,0.00054326,81]
[341108564,1730386244883,-535.76934477,0.00054529,5]
[341108565,1730386244893,-1000.0,0.00054591,120]
[341108566,1730386244902,-1000.0,0.00054591,120]
[341108567,1730386244911,-229.46103529,0.00054784,2]
[341108568,1730386244922,-328.88233059,0.00054793,10]
[341108569,1730386244931,-300.0,0.00054793,10]
[341108570,1730386244942,-1068.82998553,0.00054794,90]
[341108571,1730386244952,-500.0,0.00054794,120]
[341108572,1730386244961,-500.0,0.00054794,7]
[341108573,1730386244970,-500.0,0.00054794,120]
[341108574,1730386244980,-504.45733778,0.00054794,120]
[341108575,1730386244989,-565.47911711,0.00054794,120]
[341108576,1730386244998,-500.0,0.00054794,2]
[341108577,1730386245007,-500.0,0.00054794,120]
[341108578,1730386245017,-500.0,0.00054794,5]
[341108579,1730386245026,-500.0,0.00054794,2]
[341108580,1730386245036,-500.0,0.00054794,2]
[341108581,1730386245046,-504.67433389,0.00054794,120]
[341108582,1730386245056,-504.27813161,0.00054794,120]
[341108583,1730386245065,-504.07336125,0.00054794,120]
[341108584,1730386245074,-500.0,0.00054794,120]
[341108585,1730386245084,-175.76817926,0.00054794,120]
[341108586,1730386245094,-300.0,0.00054794,120]
[341108587,1730386245106,-183.23182074,0.00054794,120]
[341108588,1730386245115,-308.45012477,0.00054794,120]
[341108589,1730386245125,-509.06903527,0.00054794,120]
[341108590,1730386245134,-512.65658884,0.00054794,120]
[341108591,1730386245144,-508.69504315,0.00054794,120]
[341108592,1730386245154,-511.09896023,0.00054794,120]
[341108593,1730386245164,-517.64729762,0.00054794,120]
[341108594,1730386245174,-500.0,0.00054794,120]
[341108595,1730386245183,-500.0,0.00054794,120]
[341108596,1730386245193,-500.0,0.00054794,120]
[341108597,1730386245203,-500.0,0.00054794,120]
[341108598,1730386245213,-507.17750823,0.00054794,120]
[341108599,1730386245223,-503.06410835,0.00054794,120]
[341108600,1730386245232,-500.0,0.00054794,120]
[341108601,1730386245242,-516.89198401,0.00054794,120]
[341108602,1730386245251,-500.0,0.00054794,120]
[341108603,1730386245261,-500.0,0.00054794,120]
[341108604,1730386245271,-500.0,0.00054794,120]
[341108605,1730386245280,-500.0,0.00054794,5]
[341108606,1730386245290,-500.0,0.00054794,120]
[341108607,1730386245300,-500.0,0.00054794,120]
[341108608,1730386245309,-500.0,0.00054794,120]
[341108609,1730386245319,-500.0,0.00054794,120]
[341108610,1730386245328,-500.0,0.00054794,120]
[341108611,1730386245339,-500.0,0.00054794,120]
[341108612,1730386245348,-500.0,0.00054794,120]
[341108613,1730386245362,-500.0,0.00054794,120]
[341108614,1730386245373,-500.0,0.00054794,120]
[341108615,1730386245383,-500.0,0.00054794,120]
[341108616,1730386245393,-208.40949466,0.00054794,120]
[341108617,1730386245403,-500.0,0.00054794,120]
[341108618,1730386245413,-520.84362431,0.00054794,120]
[341108619,1730386245423,-535.31030947,0.00054794,120]
[341108620,1730386245432,-500.0,0.00054794,120]
[341108621,1730386245442,-500.0,0.00054794,120]
[341108622,1730386245452,-500.0,0.00054794,120]
[341108623,1730386245461,-500.0,0.00054794,120]
[341108624,1730386245471,-496.65568617,0.00054794,120]
[341108625,1730386245481,-500.0,0.00054794,120]
[341108626,1730386245491,-420.88849419,0.00054794,120]
[341108627,1730386245501,-640.66198961,0.00054794,120]
[341108628,1730386245511,-558.22411312,0.00054794,120]
[341108629,1730386245521,-500.0,0.00054794,120]
[341108630,1730386245531,-500.0,0.00054794,120]
[341108632,1730386245542,-567.71260437,0.00054794,120]
[341108633,1730386245552,-500.0,0.00054794,120]
[341108635,1730386245562,-500.0,0.00054794,120]
[341108636,1730386245571,-1000.0,0.00054794,120]
[341108638,1730386245581,-500.0,0.00054794,120]
[341108639,1730386245591,-606.85503001,0.00054794,120]
[341108640,1730386245601,-500.0,0.00054794,120]
[341108641,1730386245615,-500.0,0.00054794,120]
[341108642,1730386245628,-529.09,0.00054794,120]
[341108643,1730386245637,-500.0,0.00054794,120]
[341108644,1730386245646,-503.18327966,0.00054794,120]
[341108645,1730386245655,-500.0,0.00054794,120]
[341108647,1730386245666,-500.0,0.00054794,120]
[341108649,1730386245676,-500.0,0.00054794,120]
[341108651,1730386245687,-500.0,0.00054794,120]
[341108652,1730386245696,-500.0,0.00054794,120]
[341108654,1730386245707,-500.0,0.00054794,120]
[341108656,1730386245717,-500.0,0.00054794,120]
[341108658,1730386245727,-500.0,0.00054794,120]
[341108660,1730386245737,-500.0,0.00054794,60]
[341108662,1730386245748,-500.0,0.00054794,120]
[341108663,1730386245761,-500.0,0.00054794,120]
[341108665,1730386245771,-500.0,0.00054794,120]
[341108667,1730386245780,-500.0,0.00054794,120]
[341108669,1730386245791,-500.0,0.00054794,120]
[341108671,1730386245801,-228.03119902,0.00054794,120]
[341108672,1730386245810,-500.0,0.00054794,7]
[341108673,1730386245821,-500.0,0.00054794,120]
[341108674,1730386245831,-500.0,0.00054794,120]
[341108675,1730386245842,-500.0,0.00054794,120]
[341108676,1730386245852,-500.0,0.00054794,120]
[341108677,1730386245865,-500.0,0.00054794,120]
[341108678,1730386245875,-524.14,0.00054794,120]
[341108679,1730386245884,-636.57004505,0.00054794,120]
[341108680,1730386245894,-500.0,0.00054794,120]
[341108681,1730386245904,-500.0,0.00054794,120]
[341108682,1730386245914,-500.0,0.00054794,120]
[341108683,1730386245924,-500.0,0.00054794,120]
[341108684,1730386245935,-500.0,0.00054794,120]
[341108685,1730386245944,-948.36,0.00054794,120]
[341108686,1730386245954,-500.0,0.00054794,120]
[341108687,1730386245963,-500.0,0.00054794,120]
[341108688,1730386245973,-500.0,0.00054794,120]
[341108689,1730386245983,-500.0,0.00054794,120]
[341108690,1730386245993,-500.0,0.00054794,120]
[341108691,1730386246003,-500.0,0.00054794,120]
[341108692,1730386246013,-500.0,0.00054794,120]
[341108693,1730386246023,-500.0,0.00054794,120]
[341108694,1730386246032,-500.0,0.00054794,120]
[341108695,1730386246042,-500.0,0.00054794,120]
[341108696,1730386246051,-500.0,0.00054794,120]
[341108697,1730386246062,-386.7,0.00054794,120]
[341108698,1730386246071,-500.0,0.00054794,120]
[341108699,1730386246080,-517.45,0.00054794,120]
[341108700,1730386246090,-526.8566949,0.00054794,120]
[341108701,1730386246100,-500.0,0.00054794,120]
[341108702,1730386246113,-370.34,0.00054794,120]
[341108703,1730386246124,-500.0,0.00054794,120]
[341108705,1730386246133,-500.0,0.00054794,120]
[341108707,1730386246142,-600.0,0.00054794,120]
[341108708,1730386246151,-500.0,0.00054794,120]
[341108711,1730386246161,-500.0,0.00054794,120]
[341108712,1730386246170,-500.0,0.00054794,120]
[341108713,1730386246179,-500.0,0.00054794,120]
[341108714,1730386246189,-535.92,0.00054794,120]
[341108715,1730386246198,-500.0,0.00054794,120]
[341108716,1730386246208,-500.0,0.00054794,120]
[341108717,1730386246219,-1682.6,0.00054794,2]
[341108718,1730386246228,-1964.11,0.00054794,120]
[341108729,1730386246319,-165.78810127,0.00054794,120]
[341108731,1730386246330,-500.0,0.00054794,120]
[341108733,1730386246339,-514.86657391,0.00054794,120]
[341108735,1730386246349,-558.86,0.00054794,120]
[341108737,1730386246360,-500.0,0.00054794,120]
[341108739,1730386246370,-191.99631859,0.00054794,120]
[341108741,1730386246379,-500.0,0.00054794,120]
[341108743,1730386246388,-500.0,0.00054794,120]
[341108745,1730386246398,-669.22,0.00054794,120]
[341108747,1730386246408,-569.48784606,0.00054794,120]
[341108749,1730386246418,-521.7443107,0.00054794,120]
[341108751,1730386246427,-500.0,0.00054794,120]
[341108753,1730386246436,-500.0,0.00054794,120]
[341108755,1730386246446,-500.0,0.00054794,120]
[341108757,1730386246455,-594.40085746,0.00054794,120]
[341108759,1730386246466,-537.95361556,0.00054794,120]
[341108761,1730386246476,-500.0,0.00054794,120]
[341108763,1730386246486,-500.0,0.00054794,120]
[341108765,1730386246495,-500.0,0.00054794,120]
[341108767,1730386246507,-500.0,0.00054794,120]
[341108769,1730386246516,-500.0,0.00054794,120]
[341108771,1730386246526,-2000.0,0.00054794,120]
[341108773,1730386246535,-500.0,0.00054794,120]
[341108775,1730386246544,-500.0,0.00054794,120]
[341108777,1730386246554,-500.0,0.00054794,120]
[341108779,1730386246563,-500.0,0.00054794,120]
[341108781,1730386246571,-500.0,0.00054794,120]
[341108783,1730386246581,-500.0,0.00054794,120]
[341108785,1730386246591,-500.0,0.00054794,120]
[341108787,1730386246601,-500.0,0.00054794,120]
[341108789,1730386246612,-500.0,0.00054794,120]
[341108791,1730386246621,-500.0,0.00054794,120]
[341108793,1730386246631,-500.0,0.00054794,120]
[341108795,1730386246640,-500.0,0.00054794,120]
[341108796,1730386246649,-500.0,0.00054794,120]
[341108798,1730386246658,-500.0,0.00054794,120]
[341108800,1730386246667,-500.0,0.00054794,120]
[341108802,1730386246676,-500.0,0.00054794,120]
[341108804,1730386246685,-460.10002704,0.00054794,120]
[341108806,1730386246694,-500.0,0.00054794,120]
[341108808,1730386246704,-522.28035647,0.00054794,120]
[341108810,1730386246713,-514.27689643,0.00054794,120]
[341108812,1730386246722,-509.095696,0.00054794,120]
[341108814,1730386246732,-500.0,0.00054794,120]
[341108816,1730386246741,-505.04280365,0.00054794,120]
[341108818,1730386246751,-500.0,0.00054794,120]
[341108820,1730386246763,-500.0,0.00054794,120]
[341108822,1730386246772,-259.62365895,0.00054794,120]
[341108823,1730386246781,-500.0,0.00054794,120]
[341108825,1730386246790,-660.1,0.00054794,120]
[341108827,1730386246801,-500.0,0.00054794,120]
[341108829,1730386246810,-500.0,0.00054794,120]
[341108831,1730386246820,-553.34,0.00054794,120]
[341108833,1730386246829,-500.0,0.00054794,120]
[341108835,1730386246839,-500.0,0.00054794,120]
[341108837,1730386246850,-500.0,0.00054794,120]
[341108839,1730386246860,-500.0,0.00054794,120]
[341108841,1730386246869,-500.0,0.00054794,120]
[341108843,1730386246878,-1035.51,0.00054794,120]
[341108845,1730386246887,-500.0,0.00054794,120]
[341108846,1730386246896,-500.0,0.00054794,60]
[341108848,1730386246905,-500.0,0.00054794,120]
[341108850,1730386246914,-500.0,0.00054794,120]
[341108852,1730386246923,-500.0,0.00054794,120]
[341108854,1730386246933,-500.0,0.00054794,120]
[341108856,1730386246942,-500.0,0.00054794,120]
[341108858,1730386246951,-1135.77,0.00054794,120]
[341108860,1730386246960,-500.0,0.00054794,120]
[341108862,1730386246970,-500.0,0.00054794,120]
[341108864,1730386246979,-1313.8,0.00054794,120]
[341108866,1730386246988,-500.0,0.00054794,120]
[341108868,1730386246997,-500.0,0.00054794,120]
[341108870,1730386247006,-1000.0,0.00054794,120]
[341108872,1730386247015,-500.07851966,0.00054794,120]
[341108874,1730386247025,-504.71324956,0.00054794,120]
[341108876,1730386247034,-500.0,0.00054794,120]
[341108878,1730386247043,-573.54,0.00054794,120]
[341108880,1730386247052,-654.96,0.00054794,120]
[341108881,1730386247061,-500.0,0.00054794,120]
[341108882,1730386247070,-585.34,0.00054794,120]
[341108883,1730386247079,-531.61,0.00054794,120]
[341108884,1730386247088,-1000.0,0.00054794,120]
[341108885,1730386247097,-1021.05,0.00054794,120]
[341108886,1730386247111,-500.0,0.00054794,120]
[341108887,1730386247120,-500.0,0.00054794,120]
[341108889,1730386247136,-500.0,0.00054794,120]
[341108891,1730386247144,-1588.0,0.00054794,120]
[341108893,1730386247154,-500.0,0.00054794,120]
[341108895,1730386247162,-500.0,0.00054794,120]
[341108897,1730386247171,-500.0,0.00054794,2]
[341108898,1730386247181,-500.0,0.00054794,120]
[341108900,1730386247189,-500.0,0.00054794,120]
[341108902,1730386247199,-1605.18,0.00054794,7]
[341108904,1730386247208,-656.47,0.00054794,120]
[341108906,1730386247217,-1032.7,0.00054794,120]
[341108908,1730386247227,-200.2,0.00054794,7]
[341108910,1730386247237,-164.94607363,0.00054794,120]
[341108912,1730386247246,-1591.58,0.00054794,21]
[341108914,1730386247257,-500.0,0.00054794,120]
[341108916,1730386247267,-500.0,0.00054794,120]
[341108918,1730386247277,-500.0,0.00054794,120]
[341108920,1730386247287,-1220.65,0.00054794,120]
[341108922,1730386247296,-321.01743904,0.00054794,120]
[341108924,1730386247305,-500.0,0.00054794,120]
[341108926,1730386247315,-500.0,0.00054794,120]
[341108929,1730386247326,-500.0,0.00054794,7]
[341108930,1730386247336,-500.0,0.00054794,120]
[341108933,1730386247346,-1526.81,0.00054794,120]
[341108934,1730386247358,-1526.81,0.00054794,120]
[341108936,1730386247367,-1526.81,0.00054794,120]
[341108938,1730386247376,-1526.81,0.00054794,120]
[341108940,1730386247385,-1526.81,0.00054794,120]
[341108942,1730386247395,-1526.81,0.00054794,120]
[341108944,1730386247404,-1526.81,0.00054794,120]
[341108947,1730386247414,-1526.81,0.00054794,120]
[341108949,1730386247424,-500.0,0.00054794,120]
[341108950,1730386247433,-594.63,0.00054794,120]
[341108952,1730386247441,-500.0,0.00054794,120]
[341108954,1730386247450,-500.0,0.00054794,120]
[341108957,1730386247462,-500.0,0.00054794,120]
[341108959,1730386247472,-500.0,0.00054794,120]
[341108961,1730386247481,-500.0,0.00054794,120]
[341108963,1730386247491,-500.0,0.00054794,120]
[341108965,1730386247500,-500.0,0.00054794,120]
[341108966,1730386247509,-500.0,0.00054794,120]
[341108968,1730386247518,-500.0,0.00054794,120]
[341108970,1730386247528,-500.35275161,0.00054794,120]
[341108972,1730386247537,-500.0,0.00054794,120]
[341108974,1730386247546,-500.0,0.00054794,120]
[341108976,1730386247557,-500.0,0.00054794,120]
[341108978,1730386247567,-500.0,0.00054794,120]
[341108980,1730386247576,-509.8,0.00054794,120]
[341108982,1730386247586,-384.19725552,0.00054794,120]
[341108984,1730386247595,-710.63,0.00054794,120]
[341108986,1730386247606,-500.0,0.00054794,120]
[341108988,1730386247615,-1908.02,0.00054794,120]
[341108990,1730386247624,-500.0,0.00054794,120]
[341108992,1730386247633,-500.0,0.00054794,120]
[341108994,1730386247642,-646.65,0.00054794,120]
[341108996,1730386247651,-500.0,0.00054794,120]
[341108998,1730386247660,-587.64856338,0.00054794,120]
[341109000,1730386247669,-156.14989754,0.00054794,120]
[341109002,1730386247678,-581.27,0.00054794,120]
[341109004,1730386247688,-645.93170257,0.00054794,120]
[341109006,1730386247698,-753.15,0.00054794,120]
[341109008,1730386247707,-500.0,0.00054794,120]
[341109010,1730386247716,-385.04713769,0.00054794,120]
[341109012,1730386247726,-500.0,0.00054794,120]
[341109014,1730386247735,-500.0,0.00054794,120]
[341109016,1730386247744,-3166.22,0.00054794,120]
[341109018,1730386247756,-500.0,0.00054794,120]
[341109020,1730386247767,-500.0,0.00054794,120]
[341109022,1730386247776,-912.95,0.00054794,120]
[341109024,1730386247785,-1938.45,0.00054794,120]
[341109026,1730386247794,-507.28,0.00054794,120]
[341109028,1730386247804,-500.0,0.00054794,120]
[341109030,1730386247813,-500.0,0.00054794,120]
[341109032,1730386247822,-1002.39,0.00054794,120]
[341109034,1730386247832,-500.0,0.00054794,120]
[341109036,1730386247842,-901.17,0.00054794,120]
[341109038,1730386247852,-546.67,0.00054794,120]
[341109040,1730386247864,-500.0,0.00054794,120]
[341109042,1730386247873,-500.0,0.00054794,120]
[341109044,1730386247882,-922.94,0.00054794,120]
[341109045,1730386247891,-500.0,0.00054794,120]
[341109047,1730386247900,-500.0,0.00054794,120]
[341109049,1730386247909,-450.0,0.00054794,120]
[341109052,1730386247920,-500.0,0.00054794,120]
[341109053,1730386247929,-1229.39,0.00054794,120]
[341109056,1730386247940,-539.21481304,0.00054794,120]
[341109058,1730386247949,-500.0,0.00054794,120]
[341109060,1730386247958,-500.0,0.00054794,120]
[341109062,1730386247967,-500.0,0.00054794,120]
[341109071,1730386247976,-589.34661019,0.00054794,120]
[341109073,1730386248063,-570.59,0.00054794,120]
[341109075,1730386248073,-500.0,0.00054794,120]
[341109077,1730386248083,-155.05568699,0.00054794,120]
[341109079,1730386248093,-500.0,0.00054794,120]
[341109081,1730386248102,-805.39,0.00054794,120]
[341109083,1730386248114,-595.67079749,0.00054794,120]
[341109085,1730386248123,-500.0,0.00054794,120]
[341109087,1730386248132,-589.58437627,0.00054794,120]
[341109089,1730386248142,-834.7,0.00054794,120]
[341109091,1730386248151,-500.0,0.00054794,120]
[341109093,1730386248160,-500.0,0.00054794,120]
[341109095,1730386248170,-1423.9,0.00054794,120]
[341109097,1730386248179,-500.0,0.00054794,120]
[341109099,1730386248188,-500.0,0.00054794,120]
[341109101,1730386248198,-500.0,0.00054794,120]
[341109103,1730386248207,-500.0,0.00054794,120]
[341109105,1730386248217,-500.0,0.00054794,120]
[341109107,1730386248226,-500.0,0.00054794,120]
[341109109,1730386248236,-500.0,0.00054794,120]
[341109111,1730386248245,-500.0,0.00054794,120]
[341109113,1730386248255,-500.0,0.00054794,120]
[341109115,1730386248264,-500.0,0.00054794,120]
[341109117,1730386248274,-500.0,0.00054794,120]
[341109119,1730386248283,-500.0,0.00054794,120]
[341109121,1730386248292,-500.0,0.00054794,120]
[341109123,1730386248301,-890.13,0.00054794,120]
[341109125,1730386248311,-500.0,0.00054794,120]
[341109127,1730386248320,-500.0,0.00054794,120]
[341109129,1730386248330,-500.0,0.00054794,120]
[341109131,1730386248339,-452.63969096,0.00054794,120]
[341109133,1730386248350,-500.0,0.00054794,120]
[341109135,1730386248361,-187.4,0.00054794,120]
[341109137,1730386248371,-443.00809311,0.00054794,120]
[341109139,1730386248380,-1314.67,0.00054794,120]
[341109141,1730386248390,-500.0,0.00054794,120]
[341109143,1730386248399,-500.0,0.00054794,120]
[341109144,1730386248408,-506.99248409,0.00054794,120]
[341109146,1730386248418,-500.0,0.00054794,120]
[341109148,1730386248427,-489.33578744,0.00054794,120]
[341109150,1730386248437,-500.0,0.00054794,120]
[341109152,1730386248446,-500.0,0.00054794,120]
[341109154,1730386248456,-500.0,0.00054794,120]
[341109156,1730386248465,-1000.0,0.00054795,2]
[341109158,1730386248475,-1000.0,0.00054795,2]
[341109160,1730386248484,-1000.0,0.00054795,2]
[341109162,1730386248493,-1000.0,0.00054795,2]
[341109164,1730386248503,-1000.0,0.00054795,2]
[341109166,1730386248512,-1000.0,0.00054795,2]
[341109168,1730386248521,-1000.0,0.00054795,2]
[341109169,1730386248530,-1000.0,0.00054795,2]
[341109170,1730386248540,-1000.0,0.00054795,2]
[341109171,1730386248549,-1000.0,0.00054795,2]
[341109172,1730386248558,-1000.0,0.00054795,2]